DEPARTMENT,ENTITY,DOCUMENT DATE,VENDOR NAME,EXPENSE TYPE,EXPENSE AREA,TRANSACTION NUMBER,AMOUNT,TRANSACTION DESCRIPTION
DEPARTMENT OF HEALTH                              ,SOUTH CENTRAL AMBULANCE NHS FOUNDATION TRUST                                ,09/06/2019,MEDI4 AMBULANCE SERVICES LTD                                     ,PTS PRIVATE PROVIDERS,NON EMERGENCY SERVICES ,1115721,"57,207.25",JUNE PP HOURS                  
DEPARTMENT OF HEALTH                              ,SOUTH CENTRAL AMBULANCE NHS FOUNDATION TRUST                                ,03/06/2019,ELITE MEDICAL AND AMBULANCE SERVICE LTD                          ,PTS PRIVATE PROVIDERS,NON EMERGENCY SERVICES ,1115723,"41,835.76",JUNE PP HOURS                  
DEPARTMENT OF HEALTH                              ,SOUTH CENTRAL AMBULANCE NHS FOUNDATION TRUST                                ,10/06/2019,ELITE MEDICAL AND AMBULANCE SERVICE LTD                          ,PTS PRIVATE PROVIDERS,NON EMERGENCY SERVICES ,1115724,"44,985.03",JUNE PP HOURS                  
DEPARTMENT OF HEALTH                              ,SOUTH CENTRAL AMBULANCE NHS FOUNDATION TRUST                                ,14/06/2019,F.A.S.T. AMBULANCE SERVICE LTD                                   ,PTS PRIVATE PROVIDERS,NON EMERGENCY SERVICES ,1115725,"33,520.52",JUNE PP HOURS                  
DEPARTMENT OF HEALTH                              ,SOUTH CENTRAL AMBULANCE NHS FOUNDATION TRUST                                ,09/06/2019,SSG UK SPECIALIST AMBULANCE SERVICE                              ,PRIVATE AMBULANCE PROVIDERS,OPERATIONS ,1111384,"60,079.26",JUNE PP HOURS                  
DEPARTMENT OF HEALTH                              ,SOUTH CENTRAL AMBULANCE NHS FOUNDATION TRUST                                ,09/06/2019,POLARIS MEDICAL SERVICES LTD                                     ,PRIVATE AMBULANCE PROVIDERS,OPERATIONS ,1111380,"56,790.10",JUNE PP HOURS                  
DEPARTMENT OF HEALTH                              ,SOUTH CENTRAL AMBULANCE NHS FOUNDATION TRUST                                ,06/06/2019,WP GROUP LTD                                                     ,FUEL,OPERATIONS ,1115709,"26,664.00",BUNKERED FUEL
DEPARTMENT OF HEALTH                              ,SOUTH CENTRAL AMBULANCE NHS FOUNDATION TRUST                                ,27/06/2019,ALLSTAR FUEL CARD SERVICES- DD ONLY                              ,DIESEL,OPERATIONS - FUEL COSTS,1117649,"92,139.00",FUEL
DEPARTMENT OF HEALTH                              ,SOUTH CENTRAL AMBULANCE NHS FOUNDATION TRUST                                ,01/03/2019,COMPLETE NETWORKS LTD                                            ,EXTERNAL CONSULTANCY,ICT ,1117689,"32,100.00",MONTHLY SUPPORT COST  
DEPARTMENT OF HEALTH                              ,SOUTH CENTRAL AMBULANCE NHS FOUNDATION TRUST                                ,08/03/2019,COMPLETE NETWORKS LTD                                            ,IT,ICT ,1116490,"25,900.80",ADSL (BROADBAND) DATA LINES
DEPARTMENT OF HEALTH                              ,SOUTH CENTRAL AMBULANCE NHS FOUNDATION TRUST                                ,31/05/2019,CRG CLINICAL SERVICES LTD                                        ,PRIVATE AMBULANCE PROVIDERS,OPERATIONS ,1109359,"46,368.84",MAY PP HOURS                   
DEPARTMENT OF HEALTH                              ,SOUTH CENTRAL AMBULANCE NHS FOUNDATION TRUST                                ,31/05/2019,MEDI4 AMBULANCE SERVICES LTD                                     ,PTS PRIVATE PROVIDERS,NON EMERGENCY SERVICES ,1115722,"38,025.13",MAY PP HOURS                   
DEPARTMENT OF HEALTH                              ,SOUTH CENTRAL AMBULANCE NHS FOUNDATION TRUST                                ,03/06/2019,STREAMLINE (KENT) LTD                                            ,PTS PRIVATE PROVIDERS,NON EMERGENCY SERVICES ,1115726,"37,176.00",MAY PP HOURS                   
DEPARTMENT OF HEALTH                              ,SOUTH CENTRAL AMBULANCE NHS FOUNDATION TRUST                                ,31/05/2019,SSG UK SPECIALIST AMBULANCE SERVICE                              ,PRIVATE AMBULANCE PROVIDERS,OPERATIONS ,1109328,"38,452.17",MAY PP HOURS                   
DEPARTMENT OF HEALTH                              ,SOUTH CENTRAL AMBULANCE NHS FOUNDATION TRUST                                ,31/05/2019,POLARIS MEDICAL SERVICES LTD                                     ,PRIVATE AMBULANCE PROVIDERS,OPERATIONS ,1109326,"39,655.16",MAY PP HOURS                   
DEPARTMENT OF HEALTH                              ,SOUTH CENTRAL AMBULANCE NHS FOUNDATION TRUST                                ,04/06/2019,LSA SECURE LTD                                                   ,PRIVATE AMBULANCE PROVIDERS,OPERATIONS ,1109321,"49,248.88",MAY PP HOURS                   
DEPARTMENT OF HEALTH                              ,SOUTH CENTRAL AMBULANCE NHS FOUNDATION TRUST                                ,31/05/2019,ORTIVUS UK LTD                                                   ,IT,OPERATIONS ,1105177,"47,423.48",DATA HOSTING & MANAGED SERVICE 
DEPARTMENT OF HEALTH                              ,SOUTH CENTRAL AMBULANCE NHS FOUNDATION TRUST                                ,31/05/2019,COMPLETE NETWORKS LTD                                            ,IT,ICT ,1116491,"25,900.80",ADSL (BROADBAND) DATA LINES 
DEPARTMENT OF HEALTH                              ,SOUTH CENTRAL AMBULANCE NHS FOUNDATION TRUST                                ,31/05/2019,COMPLETE NETWORKS LTD                                            ,EXTERNAL CONSULTANCY,ICT ,1117690,"32,100.00",MONTHLY SUPPORT  
DEPARTMENT OF HEALTH                              ,SOUTH CENTRAL AMBULANCE NHS FOUNDATION TRUST                                ,12/06/2019,SIEMENS FINANCIAL SERVICES                                       ,VEHICLE LEASING,NON EMERGENCY SERVICES ,1107104,"49,106.05",VEHICLE LEASE COSTS
DEPARTMENT OF HEALTH                              ,SOUTH CENTRAL AMBULANCE NHS FOUNDATION TRUST                                ,10/06/2019,AIRWAVE SOLUTIONS LTD                                            ,RADIOS,OPERATIONS,1112195,"63,438.94",VEHICLE RADIOS
DEPARTMENT OF HEALTH                              ,SOUTH CENTRAL AMBULANCE NHS FOUNDATION TRUST                                ,31/05/2019,BRISTOL AMBULANCE E.M.S                                          ,PRIVATE AMBULANCE PROVIDERS,OPERATIONS ,1109322,"36,329.90",MAY PP HOURS                   
DEPARTMENT OF HEALTH                              ,SOUTH CENTRAL AMBULANCE NHS FOUNDATION TRUST                                ,09/06/2019,BRISTOL AMBULANCE E.M.S                                          ,PRIVATE AMBULANCE PROVIDERS,OPERATIONS ,1111374,"37,894.30",JUNE PP HOURS                  
DEPARTMENT OF HEALTH                              ,SOUTH CENTRAL AMBULANCE NHS FOUNDATION TRUST                                ,31/05/2019,118 LTD (T/AS CONDUIT GLOBAL)                                    ,EXTERNAL CONTRACT,OPERATIONS ,1117982,"250,575.11",MAY 19 111 CHARGES                 
DEPARTMENT OF HEALTH                              ,SOUTH CENTRAL AMBULANCE NHS FOUNDATION TRUST                                ,04/06/2019,LIAISON ONE CALL                                                 ,STAFF WELFARE,FINANCE,1117970,"53,198.28",TECHNOLOGY SACRIFICE SCHEME
DEPARTMENT OF HEALTH                              ,SOUTH CENTRAL AMBULANCE NHS FOUNDATION TRUST                                ,31/05/2019,4NET TECHNOLOGIES LTD                                            ,TELEPHONE COSTS,ICT,1107896,"89,640.00",TELEPHONY CONTRACT
DEPARTMENT OF HEALTH                              ,SOUTH CENTRAL AMBULANCE NHS FOUNDATION TRUST                                ,31/05/2019,4NET TECHNOLOGIES LTD                                            ,IT,ICT ,1107091,"49,970.40",TELEPHONY CONTRACT
DEPARTMENT OF HEALTH                              ,SOUTH CENTRAL AMBULANCE NHS FOUNDATION TRUST                                ,31/05/2019,CHURCHILL CONTRACT SERVICES LTD                                  ,MAKE READY SERVICES,CLINICAL SERVICES ,1109374,"273,280.33",MAKE READY SERVICES YEAR 4 APR 2019 
DEPARTMENT OF HEALTH                              ,SOUTH CENTRAL AMBULANCE NHS FOUNDATION TRUST                                ,09/06/2019,CRG CLINICAL SERVICES LTD                                        ,PRIVATE AMBULANCE PROVIDERS,OPERATIONS ,1111378,"72,024.40",JUNE PP HOURS                  
DEPARTMENT OF HEALTH                              ,SOUTH CENTRAL AMBULANCE NHS FOUNDATION TRUST                                ,24/06/2019,ORTIVUS UK LTD                                                   ,IT,OPERATIONS ,1117805,"25,200.00",SOFTWARE DEVELOPMENT
DEPARTMENT OF HEALTH                              ,SOUTH CENTRAL AMBULANCE NHS FOUNDATION TRUST                                ,23/06/2019,BRISTOL AMBULANCE E.M.S                                          ,PRIVATE AMBULANCE PROVIDERS,OPERATIONS ,1119229,"49,757.76",JUNE PP HOURS                  
DEPARTMENT OF HEALTH                              ,SOUTH CENTRAL AMBULANCE NHS FOUNDATION TRUST                                ,23/06/2019,CRG CLINICAL SERVICES LTD                                        ,PRIVATE AMBULANCE PROVIDERS,OPERATIONS ,1119231,"74,342.12",JUNE PP HOURS                  
DEPARTMENT OF HEALTH                              ,SOUTH CENTRAL AMBULANCE NHS FOUNDATION TRUST                                ,23/06/2019,SSG UK SPECIALIST AMBULANCE SERVICE                              ,PRIVATE AMBULANCE PROVIDERS,OPERATIONS ,1119234,"64,816.50",JUNE PP HOURS                  
DEPARTMENT OF HEALTH                              ,SOUTH CENTRAL AMBULANCE NHS FOUNDATION TRUST                                ,23/06/2019,POLARIS MEDICAL SERVICES LTD                                     ,PRIVATE AMBULANCE PROVIDERS,OPERATIONS ,1119232,"65,334.88",JUNE PP HOURS                  
DEPARTMENT OF HEALTH                              ,SOUTH CENTRAL AMBULANCE NHS FOUNDATION TRUST                                ,30/04/2019,LSA SECURE LTD                                                   ,PRIVATE AMBULANCE PROVIDERS,OPERATIONS ,1105228,"47,352.50",APRIL PP HOURS
DEPARTMENT OF HEALTH                              ,SOUTH CENTRAL AMBULANCE NHS FOUNDATION TRUST                                ,21/06/2019,ROCKALL SAFETY LTD                                               ,HART,OPERATIONS ,1117848,"26,562.18",HART SPECIALIST EQUIPMENT
DEPARTMENT OF HEALTH                              ,SOUTH CENTRAL AMBULANCE NHS FOUNDATION TRUST                                ,05/06/2019,SOUTH CENTRAL FLEET SERVICES LTD                                 ,VEHICLE LEASING,OPERATIONS ,1107109,"164,135.14",VEHICLE LEASE COSTS
DEPARTMENT OF HEALTH                              ,SOUTH CENTRAL AMBULANCE NHS FOUNDATION TRUST                                ,05/06/2019,SOUTH CENTRAL FLEET SERVICES LTD                                 ,VEHICLE LEASING,OPERATIONS ,1107110,"112,560.00",VEHICLE LEASE COSTS
DEPARTMENT OF HEALTH                              ,SOUTH CENTRAL AMBULANCE NHS FOUNDATION TRUST                                ,05/06/2019,SOUTH CENTRAL FLEET SERVICES LTD                                 ,VEHICLE LEASING,OPERATIONS ,1107111,"104,671.50",VEHICLE LEASE COSTS
DEPARTMENT OF HEALTH                              ,SOUTH CENTRAL AMBULANCE NHS FOUNDATION TRUST                                ,05/06/2019,SOUTH CENTRAL FLEET SERVICES LTD                                 ,FLEET SERVICES,OPERATIONS ,1107112,"100,764.00",SLA FLEET SERVICES Q1          
DEPARTMENT OF HEALTH                              ,SOUTH CENTRAL AMBULANCE NHS FOUNDATION TRUST                                ,20/06/2019,ALLSTAR FUEL CARD SERVICES- DD ONLY                              ,DIESEL,OPERATIONS - FUEL COSTS,1113771,"89,594.80",FUEL
DEPARTMENT OF HEALTH                              ,SOUTH CENTRAL AMBULANCE NHS FOUNDATION TRUST                                ,16/06/2019,BRISTOL AMBULANCE E.M.S                                          ,PRIVATE AMBULANCE PROVIDERS,OPERATIONS ,1117700,"34,983.26",JUNE PP HOURS                  
DEPARTMENT OF HEALTH                              ,SOUTH CENTRAL AMBULANCE NHS FOUNDATION TRUST                                ,16/06/2019,CRG CLINICAL SERVICES LTD                                        ,PRIVATE AMBULANCE PROVIDERS,OPERATIONS ,1117703,"67,746.20",JUNE PP HOURS                  
DEPARTMENT OF HEALTH                              ,SOUTH CENTRAL AMBULANCE NHS FOUNDATION TRUST                                ,16/06/2019,SSG UK SPECIALIST AMBULANCE SERVICE                              ,PRIVATE AMBULANCE PROVIDERS,OPERATIONS ,1117706,"65,461.65",JUNE PP HOURS                  
DEPARTMENT OF HEALTH                              ,SOUTH CENTRAL AMBULANCE NHS FOUNDATION TRUST                                ,16/06/2019,POLARIS MEDICAL SERVICES LTD                                     ,PRIVATE AMBULANCE PROVIDERS,OPERATIONS ,1117704,"59,699.94",JUNE PP HOURS                  
DEPARTMENT OF HEALTH                              ,SOUTH CENTRAL AMBULANCE NHS FOUNDATION TRUST                                ,05/06/2019,SOUTH CENTRAL FLEET SERVICES LTD                                 ,FLEET SERVICES,OPERATIONS ,1111019,"372,009.60",ADDITIONAL MAINTENANCE SERVICE 
DEPARTMENT OF HEALTH                              ,SOUTH CENTRAL AMBULANCE NHS FOUNDATION TRUST                                ,21/05/2019,COMPLETE NETWORKS LTD                                            ,ICT INFRASTRUCTURE,ICT ,1105176,"53,760.00",EXTERNAL NETWORK PROTECTION
DEPARTMENT OF HEALTH                              ,SOUTH CENTRAL AMBULANCE NHS FOUNDATION TRUST                                ,16/04/2019,CARE QUALITY COMMISSION                                          ,CERTIFICATES,CORPORATE AFFAIRS ,1109693,"159,021.00",CQC FEES 19/20                 
DEPARTMENT OF HEALTH                              ,SOUTH CENTRAL AMBULANCE NHS FOUNDATION TRUST                                ,30/04/2019,CHURCHILL CONTRACT SERVICES LTD                                  ,MAKE READY SERVICES,CLINICAL SERVICES ,1109375,"273,280.33",MAKE READY SERVICES YEAR 4 MAY 2019 
DEPARTMENT OF HEALTH                              ,SOUTH CENTRAL AMBULANCE NHS FOUNDATION TRUST                                ,03/06/2019,F & C UK PROPERTY FUND ICVC                                      ,RENTS,OPERATIONS ,1107092,"70,332.00",RENT - WERC                      
DEPARTMENT OF HEALTH                              ,SOUTH CENTRAL AMBULANCE NHS FOUNDATION TRUST                                ,19/05/2019,MEDI4 AMBULANCE SERVICES LTD                                     ,PTS PRIVATE PROVIDERS,NON EMERGENCY SERVICES ,1107136,"50,345.38",MAY PP HOURS                   
DEPARTMENT OF HEALTH                              ,SOUTH CENTRAL AMBULANCE NHS FOUNDATION TRUST                                ,20/05/2019,ELITE MEDICAL AND AMBULANCE SERVICE LTD                          ,PTS PRIVATE PROVIDERS,NON EMERGENCY SERVICES ,1106066,"44,079.15",MAY PP HOURS                   
DEPARTMENT OF HEALTH                              ,SOUTH CENTRAL AMBULANCE NHS FOUNDATION TRUST                                ,20/05/2019,STREAMLINE (KENT) LTD                                            ,PTS PRIVATE PROVIDERS,NON EMERGENCY SERVICES ,1107078,"41,750.40",MAY PP HOURS                   
DEPARTMENT OF HEALTH                              ,SOUTH CENTRAL AMBULANCE NHS FOUNDATION TRUST                                ,21/05/2019,F.A.S.T. AMBULANCE SERVICE LTD                                   ,PTS PRIVATE PROVIDERS,NON EMERGENCY SERVICES ,1106067,"32,112.00",MAY PP HOURS                   
DEPARTMENT OF HEALTH                              ,SOUTH CENTRAL AMBULANCE NHS FOUNDATION TRUST                                ,31/03/2019,PTS-247 LTD                                                      ,PTS PRIVATE PROVIDERS,NON EMERGENCY SERVICES ,1109849,"122,328.00",MAY PP HOURS                   
DEPARTMENT OF HEALTH                              ,SOUTH CENTRAL AMBULANCE NHS FOUNDATION TRUST                                ,30/04/2019,PTS-247 LTD                                                      ,PTS PRIVATE PROVIDERS,NON EMERGENCY SERVICES ,1109850,"117,864.00",APRIL PP HOURS
DEPARTMENT OF HEALTH                              ,SOUTH CENTRAL AMBULANCE NHS FOUNDATION TRUST                                ,13/06/2019,ALLSTAR FUEL CARD SERVICES- DD ONLY                              ,DIESEL,OPERATIONS - FUEL COSTS,1110201,"87,331.55",FUEL
DEPARTMENT OF HEALTH                              ,SOUTH CENTRAL AMBULANCE NHS FOUNDATION TRUST                                ,12/06/2019,HM REVENUE & CUSTOMS                                             ,PAYE/NI,CORPORATE,1109953,"2,703,621.54",PAYE/NI MAY 2019               
DEPARTMENT OF HEALTH                              ,SOUTH CENTRAL AMBULANCE NHS FOUNDATION TRUST                                ,12/06/2019,HM REVENUE & CUSTOMS                                             ,PAYE/NI,CORPORATE,1109954,"45,957.00",APPRENTICESHIP LEVY MAY 2019   
DEPARTMENT OF HEALTH                              ,SOUTH CENTRAL AMBULANCE NHS FOUNDATION TRUST                                ,06/06/2019,ALLSTAR FUEL CARD SERVICES- DD ONLY                              ,PRIVATE AMBULANCE PROVIDERS,OPERATIONS ,1106984,"93,274.89",FUEL
DEPARTMENT OF HEALTH                              ,SOUTH CENTRAL AMBULANCE NHS FOUNDATION TRUST                                ,29/05/2019,SIEMENS FINANCIAL SERVICES                                       ,VEHICLE LEASING,OPERATIONS ,1106072,"46,181.32",VEHICLE LEASE COSTS
DEPARTMENT OF HEALTH                              ,SOUTH CENTRAL AMBULANCE NHS FOUNDATION TRUST                                ,25/05/2019,SIEMENS FINANCIAL SERVICES                                       ,VEHICLE LEASING,NON EMERGENCY SERVICES ,1107105,"33,713.05",VEHICLE LEASE COSTS
DEPARTMENT OF HEALTH                              ,SOUTH CENTRAL AMBULANCE NHS FOUNDATION TRUST                                ,26/05/2019,SIEMENS FINANCIAL SERVICES                                       ,VEHICLE LEASING,NON EMERGENCY SERVICES ,1107106,"35,622.90",VEHICLE LEASE COSTS
DEPARTMENT OF HEALTH                              ,SOUTH CENTRAL AMBULANCE NHS FOUNDATION TRUST                                ,30/05/2019,SIEMENS FINANCIAL SERVICES                                       ,VEHICLE LEASING,NON EMERGENCY SERVICES ,1107107,"35,203.62",VEHICLE LEASE COSTS
DEPARTMENT OF HEALTH                              ,SOUTH CENTRAL AMBULANCE NHS FOUNDATION TRUST                                ,26/05/2019,BRISTOL AMBULANCE E.M.S                                          ,PRIVATE AMBULANCE PROVIDERS,OPERATIONS ,1106120,"43,868.88",MAY PP HOURS                   
DEPARTMENT OF HEALTH                              ,SOUTH CENTRAL AMBULANCE NHS FOUNDATION TRUST                                ,31/05/2019,SOCIETE GENERALE EQUIPMENT FINANCE LTD                           ,VEHICLE LEASING,NON EMERGENCY SERVICES ,1107890,"102,222.78",VEHICLE LEASE COSTS
DEPARTMENT OF HEALTH                              ,SOUTH CENTRAL AMBULANCE NHS FOUNDATION TRUST                                ,24/05/2019,4NET TECHNOLOGIES LTD                                            ,TELEPHONE COSTS,ICT,1105161,"337,062.00",TELEPHONY CONTRACT
DEPARTMENT OF HEALTH                              ,SOUTH CENTRAL AMBULANCE NHS FOUNDATION TRUST                                ,26/05/2019,CRG CLINICAL SERVICES LTD                                        ,PRIVATE AMBULANCE PROVIDERS,OPERATIONS ,1109358,"71,144.08",MAY PP HOURS                   
DEPARTMENT OF HEALTH                              ,SOUTH CENTRAL AMBULANCE NHS FOUNDATION TRUST                                ,28/05/2019,BEELINE PROPERTIES LTD                                           ,RENTS,"FINANCE, ESTATES AND PROCUREMENT ",1109841,"34,675.20",RENT - BONE LANE                 
DEPARTMENT OF HEALTH                              ,SOUTH CENTRAL AMBULANCE NHS FOUNDATION TRUST                                ,26/05/2019,MEDI4 AMBULANCE SERVICES LTD                                     ,PTS PRIVATE PROVIDERS,NON EMERGENCY SERVICES ,1107135,"48,862.26",MAY PP HOURS                   
DEPARTMENT OF HEALTH                              ,SOUTH CENTRAL AMBULANCE NHS FOUNDATION TRUST                                ,27/05/2019,ELITE MEDICAL AND AMBULANCE SERVICE LTD                          ,PTS PRIVATE PROVIDERS,NON EMERGENCY SERVICES ,1107147,"45,013.18",MAY PP HOURS                   
DEPARTMENT OF HEALTH                              ,SOUTH CENTRAL AMBULANCE NHS FOUNDATION TRUST                                ,27/05/2019,STREAMLINE (KENT) LTD                                            ,PTS PRIVATE PROVIDERS,NON EMERGENCY SERVICES ,1110315,"40,090.80",MAY PP HOURS                   
DEPARTMENT OF HEALTH                              ,SOUTH CENTRAL AMBULANCE NHS FOUNDATION TRUST                                ,28/05/2019,F.A.S.T. AMBULANCE SERVICE LTD                                   ,PTS PRIVATE PROVIDERS,NON EMERGENCY SERVICES ,1109368,"35,065.50",MAY PP HOURS                   
DEPARTMENT OF HEALTH                              ,SOUTH CENTRAL AMBULANCE NHS FOUNDATION TRUST                                ,26/05/2019,SSG UK SPECIALIST AMBULANCE SERVICE                              ,PRIVATE AMBULANCE PROVIDERS,OPERATIONS ,1106122,"55,681.53",MAY PP HOURS                   
DEPARTMENT OF HEALTH                              ,SOUTH CENTRAL AMBULANCE NHS FOUNDATION TRUST                                ,26/05/2019,POLARIS MEDICAL SERVICES LTD                                     ,PRIVATE AMBULANCE PROVIDERS,OPERATIONS ,1109325,"66,281.88",MAY PP HOURS                   
DEPARTMENT OF HEALTH                              ,SOUTH CENTRAL AMBULANCE NHS FOUNDATION TRUST                                ,08/05/2019,ENVIRONTEC LTD                                                   ,HEALTH & SAFETY MAINTENANCE,"FINANCE, ESTATES AND PROCUREMENT ",1111392,"49,984.80",ASBESTOS CLEARANCE               
DEPARTMENT OF HEALTH                              ,SOUTH CENTRAL AMBULANCE NHS FOUNDATION TRUST                                ,18/06/2019,ADVANCED HEALTH AND CARE LTD                                     ,SOFTWARE UPGRADE,OPERATIONS,1113905,"417,830.29",SOFTWARE PROVISION AND MAINTENANCE
DEPARTMENT OF HEALTH                              ,SOUTH CENTRAL AMBULANCE NHS FOUNDATION TRUST                                ,05/06/2019,JLT--QBE-STANDING ORDER                                          ,ANNUAL MOTOR INSURANCE PREMIUM,OPERATIONS,1090617,"65,785.00",MOTOR FLEET INSUREANCE                
